fUST/lending_fUST_20250425
["ID","MTS","AMOUNT","RATE_DAILY","PERIOD"]
[358905084,1745538649087,-2134.1,0.00017534,2]
[358905085,1745538649097,-688.14,0.00017534,2]
[358905086,1745538649106,-2546.26,0.00017534,2]
[358905087,1745538649116,-500.0,0.00017534,2]
[358905088,1745538649125,-2919.35,0.00017534,2]
[358905089,1745538649136,-500.0,0.00017534,2]
[358905090,1745538649145,-500.0,0.00017534,2]
[358905091,1745538649155,-635.73,0.00017534,2]
[358905092,1745538649166,-913.73,0.00017534,2]
[358905093,1745538649176,-189.22615224,0.00017534,2]
[358905094,1745538649186,-500.0,0.00017534,2]
[358905095,1745538649196,-500.0,0.00017534,2]
[358905096,1745538649205,-557.74,0.00017534,2]
[358905097,1745538649215,-750.57,0.00017534,2]
[358905098,1745538649225,-500.0,0.00017534,2]
[358905099,1745538649235,-546.22,0.00017534,2]
[358905100,1745538649244,-500.0,0.00017534,2]
[358905101,1745538649254,-802.47,0.00017534,2]
[358905102,1745538649265,-500.0,0.00017534,2]
[358905103,1745538649274,-500.0,0.00017534,2]
[358905104,1745538649284,-2000.0,0.00017705,2]
[358905105,1745538649305,-203.104,0.00017769,2]
[358905106,1745538649317,-250.0,0.00017769,2]
[358905107,1745538649328,-246.67,0.00017769,2]
[358905108,1745538649338,-228.227,0.00017769,2]
[358905109,1745538649349,-256.354,0.00017769,2]
[358905110,1745538649359,-172.579,0.00017769,2]
[358905111,1745538649369,-151.0,0.00017808,2]
[358905112,1745538649379,-500.0,0.00017808,2]
[358905113,1745538649390,-686.52,0.00017808,2]
[358905114,1745538649400,-500.0,0.00017808,2]
[358905115,1745538649411,-500.0,0.00017808,2]
[358905116,1745538649421,-500.0,0.00017808,2]
[358905117,1745538649431,-500.0,0.00017808,2]
[358905118,1745538649441,-461.79759554,0.00017808,2]
[358905119,1745538649451,-500.0,0.00017808,2]
[358905120,1745538649461,-500.0,0.00017808,2]
[358905121,1745538649471,-562.97,0.00017808,2]
[358905122,1745538649481,-500.0,0.00017808,2]
[358905123,1745538649492,-2074.0,0.00017808,2]
[358905124,1745538649502,-500.0,0.00017808,2]
[358905125,1745538649513,-185.78523048,0.00017808,2]
[358905126,1745538649523,-500.0,0.00017808,2]
[358905127,1745538649533,-500.0,0.00017808,2]
[358905128,1745538649544,-647.81,0.00017808,2]
[358905129,1745538649554,-865.84,0.00017808,2]
[358905130,1745538649565,-598.45,0.00017808,2]
[358905131,1745538649575,-500.0,0.00017808,2]
[358905132,1745538649585,-500.0,0.00017808,2]
[358905133,1745538649595,-909.15,0.00017808,2]
[358905134,1745538649605,-500.0,0.00017808,2]
[358905135,1745538649616,-669.63,0.00017808,2]
[358905136,1745538649626,-500.0,0.00017808,2]
[358905137,1745538649636,-500.0,0.00017808,2]
[358905138,1745538649646,-500.0,0.00017808,2]
[358905139,1745538649656,-500.0,0.00017808,2]
[358905140,1745538649666,-500.0,0.00017808,2]
[358905141,1745538649676,-500.0,0.00017808,2]
[358905142,1745538649686,-500.0,0.00017808,2]
[358905143,1745538649697,-548.07,0.00017808,2]
[358905144,1745538649707,-500.0,0.00017808,2]
[358905145,1745538649717,-500.0,0.00017808,2]
[358905146,1745538649727,-1014.56,0.00017808,2]
[358905147,1745538649737,-619.07,0.00017808,2]
[358905148,1745538649747,-763.33,0.00017808,2]
[358905149,1745538649757,-500.0,0.00017808,2]
[358905150,1745538649768,-500.0,0.00017808,2]
[358905151,1745538649779,-1593.09,0.00017808,2]
[358905152,1745538649789,-500.0,0.00017808,2]
[358905153,1745538649799,-1087.1,0.00017808,2]
[358905154,1745538649811,-500.0,0.00017808,2]
[358905155,1745538649823,-258.66472821,0.00017808,2]
[358905156,1745538649833,-500.0,0.00017808,2]
[358905157,1745538649843,-571.16,0.00017808,2]
[358905158,1745538649853,-524.65,0.00017808,2]
[358905159,1745538649864,-1079.72,0.00017808,2]
[358905160,1745538649874,-500.0,0.00017808,2]
[358905161,1745538649885,-500.0,0.00017808,2]
[358905162,1745538649895,-500.0,0.00017808,2]
[358905163,1745538649905,-500.0,0.00017808,2]
[358905164,1745538649915,-500.0,0.00017808,2]
[358905165,1745538649925,-500.0,0.00017808,2]
[358905166,1745538649935,-627.3,0.00017808,2]
[358905167,1745538649945,-5641.01,0.00017808,2]
[358905168,1745538649955,-243.85347553,0.00017808,2]
[358905169,1745538649965,-500.0,0.00017808,2]
[358905170,1745538649975,-873.75,0.00017808,2]
[358905171,1745538649985,-1819.53,0.00017808,2]
[358905172,1745538649995,-2148.05,0.00017808,2]
[358905173,1745538650005,-570.28,0.00017808,2]
[358905174,1745538650016,-668.93,0.00017808,2]
[358905175,1745538650026,-500.0,0.00017808,2]
[358905176,1745538650035,-608.53,0.00017808,2]
[358905177,1745538650046,-2153.05,0.00017808,2]
[358905178,1745538650055,-8119.88,0.00017808,2]
[358905179,1745538650066,-500.0,0.00017808,2]
[358905180,1745538650076,-562.721233,0.00017808,2]
[358905181,1745538650086,-524.99,0.00017808,2]
[358905182,1745538650096,-500.0,0.00017808,2]
[358905183,1745538650107,-663.98,0.00017808,2]
[358905184,1745538650117,-562.721233,0.00017808,2]
[358905185,1745538650127,-613.1,0.00017808,2]
[358905186,1745538650137,-500.0,0.00017808,2]
[358905187,1745538650150,-2005.84,0.00017808,2]
[358905188,1745538650161,-500.0,0.00017808,2]
[358905189,1745538650170,-889.23,0.00017808,2]
[358905190,1745538650180,-1662.13,0.00017808,2]
[358905191,1745538650191,-1949.84,0.00017808,2]
[358905192,1745538650201,-875.47,0.00017808,2]
[358905193,1745538650212,-596.58,0.00017808,2]
[358905194,1745538650225,-3728.45,0.00017808,2]
[358905195,1745538650236,-1575.42,0.00017808,2]
[358905196,1745538650247,-500.0,0.00017808,2]
[358905197,1745538650258,-500.0,0.00017808,2]
[358905198,1745538650268,-567.37,0.00017808,2]
[358905199,1745538650278,-500.0,0.00017808,2]
[358905200,1745538650288,-500.0,0.00017808,2]
[358905201,1745538650298,-500.0,0.00017808,2]
[358905202,1745538650307,-856.55,0.00017808,2]
[358905203,1745538650317,-500.0,0.00017808,2]
[358905204,1745538650326,-500.0,0.00017808,2]
[358905205,1745538650336,-509.26,0.00017808,2]
[358905206,1745538650346,-151.0,0.00017808,2]
[358905207,1745538650357,-832.68,0.00017808,2]
[358905208,1745538650367,-633.54,0.00017808,2]
[358905209,1745538650377,-542.07,0.00017808,2]
[358905210,1745538650387,-589.81,0.00017808,2]
[358905211,1745538650397,-581.96,0.00017808,2]
[358905212,1745538650406,-703.28,0.00017808,2]
[358905213,1745538650416,-2090.79,0.00017808,2]
[358905214,1745538650427,-2737.46,0.00017808,2]
[358905215,1745538650437,-500.0,0.00017808,2]
[358905216,1745538650446,-500.0,0.00017808,2]
[358905217,1745538650456,-633.1,0.00017808,2]
[358905218,1745538650465,-847.66,0.00017808,2]
[358905219,1745538650475,-638.71,0.00017808,2]
[358905220,1745538650484,-723.22,0.00017808,2]
[358905221,1745538650494,-500.0,0.00017808,2]
[358905222,1745538650503,-500.0,0.00017808,2]
[358905223,1745538650512,-605.68,0.00017808,2]
[358905224,1745538650522,-500.0,0.00017808,2]
[358905225,1745538650532,-900.04,0.00017808,2]
[358905226,1745538650542,-683.67,0.00017808,2]
[358905227,1745538650552,-500.0,0.00017808,2]
[358905228,1745538650562,-500.0,0.00017808,2]
[358905229,1745538650572,-712.97,0.00017808,2]
[358905230,1745538650582,-786.89,0.00017808,2]
[358905231,1745538650593,-500.0,0.00017808,2]
[358905232,1745538650603,-2134.1,0.00017808,2]
[358905233,1745538650612,-688.14,0.00017808,2]
[358905234,1745538650621,-2546.26,0.00017808,2]
[358905235,1745538650631,-500.0,0.00017808,2]
[358905236,1745538650641,-2919.35,0.00017808,2]
[358905237,1745538650650,-500.0,0.00017808,2]
[358905238,1745538650660,-500.0,0.00017808,2]
[358905239,1745538650669,-635.73,0.00017808,2]
[358905240,1745538650679,-913.73,0.00017808,2]
[358905241,1745538650688,-500.0,0.00017808,2]
[358905242,1745538650698,-500.0,0.00017808,2]
[358905243,1745538650708,-557.74,0.00017808,2]
[358905244,1745538650717,-750.57,0.00017808,2]
[358905245,1745538650727,-500.0,0.00017808,2]
[358905246,1745538650737,-546.22,0.00017808,2]
[358905247,1745538650747,-500.0,0.00017808,2]
[358905248,1745538650756,-802.47,0.00017808,2]
[358905249,1745538650766,-500.0,0.00017808,2]
[358905250,1745538650776,-500.0,0.00017808,2]
[358905251,1745538650786,-179.9820018,0.00017994,2]
[358905252,1745538650796,-202.8,0.00018,2]
[358905253,1745538650806,-1000.0,0.00018,3]
[358905254,1745538650816,-340.0,0.0001804,2]
[358905255,1745538650826,-269.0,0.0001804,2]
[358905256,1745538650836,-310.6610457,0.00018055,2]
[358905257,1745538650846,-153.0,0.00018055,2]
[358905258,1745538650856,-153.0,0.00018055,2]
[358905259,1745538650866,-153.0,0.00018055,2]
[358905260,1745538650875,-500.0,0.00018073,2]
[358905261,1745538650886,-500.0,0.00018073,2]
[358905262,1745538650896,-556.20388403,0.00018073,2]
[358905263,1745538650907,-526.87683654,0.00018073,2]
[358905264,1745538650916,-254.03383284,0.00018073,2]
[358905265,1745538650926,-500.0,0.00018073,2]
[358905266,1745538650937,-500.0,0.00018073,2]
[358905267,1745538650947,-500.0,0.00018073,2]
[358905268,1745538650957,-500.0,0.00018073,2]
[358905269,1745538650966,-500.0,0.00018073,2]
[358905270,1745538650976,-500.0,0.00018073,2]
[358905271,1745538650986,-500.0,0.00018073,2]
[358905272,1745538650995,-500.0,0.00018073,2]
[358905273,1745538651006,-507.07174263,0.00018073,2]
[358905274,1745538651016,-500.0,0.00018073,2]
[358905275,1745538651026,-500.0,0.00018073,2]
[358905276,1745538651037,-523.52660699,0.00018073,2]
[358905277,1745538651047,-500.0,0.00018073,2]
[358905278,1745538651058,-500.0,0.00018073,2]
[358905279,1745538651067,-507.07321883,0.00018073,2]
[358905280,1745538651077,-500.0,0.00018073,2]
[358905281,1745538651087,-500.0,0.00018073,2]
[358905282,1745538651097,-500.0,0.00018073,2]
[358905283,1745538651107,-151.6659995,0.00018073,2]
[358905284,1745538651117,-590.01013141,0.00018073,2]
[358905285,1745538651126,-500.0,0.00018073,2]
[358905286,1745538651136,-500.61798726,0.00018073,2]
[358905287,1745538651145,-502.64694534,0.00018073,2]
[358905288,1745538651155,-500.0,0.00018073,2]
[358905289,1745538651165,-686.52,0.00018082,2]
[358905290,1745538651174,-500.0,0.00018082,2]
[358905291,1745538651184,-500.0,0.00018082,2]
[358905292,1745538651194,-500.0,0.00018082,2]
[358905293,1745538651204,-500.0,0.00018082,2]
[358905294,1745538651213,-500.0,0.00018082,2]
[358905295,1745538651223,-500.0,0.00018082,2]
[358905296,1745538651232,-562.97,0.00018082,2]
[358905297,1745538651242,-500.0,0.00018082,2]
[358905298,1745538651251,-2074.0,0.00018082,2]
[358905299,1745538651261,-500.0,0.00018082,2]
[358905300,1745538651270,-500.0,0.00018082,2]
[358905301,1745538651279,-500.0,0.00018082,2]
[358905302,1745538651290,-647.81,0.00018082,2]
[358905303,1745538651444,-865.84,0.00018082,2]
[358905304,1745538651455,-598.45,0.00018082,2]
[358905305,1745538651464,-500.0,0.00018082,2]
[358905306,1745538651474,-500.0,0.00018082,2]
[358905307,1745538651484,-909.15,0.00018082,2]
[358905308,1745538651493,-500.0,0.00018082,2]
[358905309,1745538651503,-669.63,0.00018082,2]
[358905310,1745538651512,-500.0,0.00018082,2]
[358905311,1745538651521,-500.0,0.00018082,2]
[358905312,1745538651531,-500.0,0.00018082,2]
[358905313,1745538651540,-500.0,0.00018082,2]
[358905314,1745538651550,-500.0,0.00018082,2]
[358905315,1745538651559,-507.75148785,0.00018082,2]
[358905316,1745538651568,-548.07,0.00018082,2]
[358905317,1745538651578,-500.0,0.00018082,2]
[358905318,1745538651587,-500.0,0.00018082,2]
[358905319,1745538651596,-1014.56,0.00018082,2]
[358905320,1745538651606,-619.07,0.00018082,2]
[358905321,1745538651615,-207.41825574,0.00018082,2]
[358905322,1745538651768,-555.91174426,0.00018082,2]
[358905323,1745538651777,-500.0,0.00018082,2]
[358905324,1745538651788,-500.0,0.00018082,2]
[358905325,1745538651798,-500.0,0.00018082,2]
[358905326,1745538651807,-1593.09,0.00018082,2]
[358905327,1745538651817,-1087.1,0.00018082,2]
[358905328,1745538651826,-500.0,0.00018082,2]
[358905329,1745538651836,-500.0,0.00018082,2]
[358905330,1745538651845,-571.16,0.00018082,2]
[358905331,1745538651855,-524.65,0.00018082,2]
[358905332,1745538651864,-1079.72,0.00018082,2]
[358905333,1745538651874,-500.0,0.00018082,2]
[358905334,1745538651883,-52.31825574,0.00018082,2]
[358905335,1745538651895,-447.68174426,0.00018082,2]
[358905336,1745538651906,-500.0,0.00018082,2]
[358905337,1745538651916,-500.0,0.00018082,2]
[358905338,1745538651926,-500.0,0.00018082,2]
[358905339,1745538651935,-500.0,0.00018082,2]
[358905340,1745538651945,-627.3,0.00018082,2]
[358905341,1745538651954,-30.80121094,0.00018082,2]
[358905342,1745538695599,1000.0,0.00014964,2]
[358905343,1745538742872,2236.96,0.00015,2]
[358905347,1745538974595,269.88295512,0.0001496,2]
[358905350,1745539361414,236.14758573,0.00014956,2]
[358905358,1745539552067,206.62913747,0.00014954,2]
[358905362,1745539641134,-300.0,0.00015051,2]
[358905363,1745539641158,-10.32408733,0.00015052,2]
[358905372,1745539832076,-300.0,0.0001505,2]
[358905373,1745539832086,-300.0,0.0001505,2]
[358905374,1745539832096,-300.0,0.0001505,2]
[358905375,1745539832106,-192.60198281,0.00015051,2]
[358905376,1745539832115,-500.0,0.00015051,2]
[358905377,1745539832125,-500.0,0.00015051,2]
[358905379,1745539832135,-486.02636907,0.00015051,2]
[358905381,1745539832144,-500.0,0.00015051,2]
[358905382,1745539832153,-500.0,0.00015051,2]
[358905383,1745539832164,-500.0,0.00015051,2]
[358905384,1745539832173,-500.0,0.00015051,2]
[358905386,1745539832183,-500.0,0.00015051,2]
[358905388,1745539832193,-500.0,0.00015051,2]
[358905390,1745539832203,-500.0,0.00015051,2]
[358905392,1745539832212,-500.0,0.00015051,2]
[358905394,1745539832222,-500.0,0.00015051,2]
[358905396,1745539832231,-500.0,0.00015051,2]
[358905398,1745539832241,-500.0,0.00015051,2]
[358905400,1745539832251,-500.0,0.00015051,2]
[358905402,1745539832260,-500.0,0.00015051,2]
[358905404,1745539832270,-500.0,0.00015051,2]
[358905406,1745539832282,-500.0,0.00015051,2]
[358905409,1745539832292,-470.64672812,0.00015051,2]
[358905413,1745539832306,-29.35327188,0.00015051,2]
[358905416,1745539832316,-500.0,0.00015051,2]
[358905420,1745539832325,-500.0,0.00015051,2]
[358905424,1745539832336,-500.0,0.00015051,2]
[358905426,1745539832346,-500.0,0.00015051,2]
[358905429,1745539832356,-500.0,0.00015051,2]
[358905432,1745539832366,-633.28851868,0.00015051,2]
[358905435,1745539832376,-500.0,0.00015051,2]
[358905437,1745539832385,-500.0,0.00015051,2]
[358905440,1745539832395,-500.0,0.00015051,2]
[358905441,1745539832404,-500.0,0.00015051,2]
[358905444,1745539832414,-500.0,0.00015051,2]
[358905446,1745539832424,-500.0,0.00015051,2]
[358905448,1745539832434,-500.0,0.00015051,2]
[358905450,1745539832443,-500.0,0.00015051,2]
[358905452,1745539832453,-500.0,0.00015051,2]
[358905454,1745539832463,-500.0,0.00015051,2]
[358905456,1745539832473,-500.0,0.00015051,2]
[358905458,1745539832483,-500.0,0.00015051,2]
[358905460,1745539832494,-500.0,0.00015051,2]
[358905463,1745539832503,-500.0,0.00015051,2]
[358905465,1745539832513,-500.0,0.00015051,2]
[358905467,1745539832523,-500.0,0.00015051,2]
[358905469,1745539832533,-500.0,0.00015051,2]
[358905471,1745539832545,-13.92312351,0.00015051,2]
[358905494,1745539838821,-60.5115722,0.00015051,2]
[358905495,1745539838835,-425.56530429,0.00015051,2]
[358905496,1745539838847,-500.0,0.00015051,2]
[358905497,1745539838859,-500.0,0.00015051,2]
[358905498,1745539838871,-383.37469571,0.00015051,2]
[358905499,1745539838885,-116.62530429,0.00015051,2]
[358905500,1745539838897,-500.0,0.00015051,2]
[358905501,1745539838909,-500.0,0.00015051,2]
[358905502,1745539838921,-500.0,0.00015051,2]
[358905503,1745539838932,-200.0,0.00015051,2]
[358905504,1745539838945,-500.0,0.00015051,2]
[358905505,1745539838956,-500.0,0.00015051,2]
[358905506,1745539838968,-513.95001371,0.00015051,2]
[358905507,1745539838980,-500.0,0.00015051,2]
[358905508,1745539838992,-209.28427666,0.00015051,2]
[358905509,1745539839003,-500.0,0.00015051,2]
[358905510,1745539839015,-243.28928482,0.00015051,2]
[358905511,1745539839027,-235.535954,0.00015197,2]
[358905512,1745539839039,-180.80049533,0.00015873,2]
[358905513,1745539839051,-370000.0,0.00015938,2]
[358905514,1745539839063,-376.82443631,0.00015973,2]
[358905515,1745539839075,-431.78433194,0.00015973,2]
[358905516,1745539839087,-500.0,0.00015973,2]
[358905517,1745539839099,-500.0,0.00015973,2]
[358905518,1745539839111,-455.78386905,0.00015973,2]
[358905519,1745539839125,-500.0,0.00015973,2]
[358905520,1745539839138,-500.0,0.00015973,2]
[358905521,1745539839150,-500.0,0.00015973,2]
[358905522,1745539839164,-500.0,0.00015973,2]
[358905523,1745539839176,-500.0,0.00015973,2]
[358905524,1745539839189,-500.0,0.00015973,2]
[358905525,1745539839201,-1596.39938754,0.00015993,2]
[358905526,1745539839213,-151.0,0.00016158,2]
[358905527,1745539839225,-500.0,0.00016438,2]
[358905528,1745539839234,-500.0,0.00016438,2]
[358905529,1745539839243,-500.0,0.00016438,2]
[358905530,1745539839253,-500.0,0.00016438,2]
[358905531,1745539839263,-500.0,0.00016438,2]
[358905532,1745539839272,-500.0,0.00016438,2]
[358905533,1745539839282,-500.0,0.00016438,2]
[358905534,1745539839291,-500.0,0.00016438,2]
[358905535,1745539839301,-500.0,0.00016438,2]
[358905536,1745539839311,-500.0,0.00016438,2]
[358905537,1745539839320,-500.0,0.00016438,2]
[358905538,1745539839330,-500.0,0.00016438,2]
[358905539,1745539839340,-500.0,0.00016438,2]
[358905540,1745539839349,-500.0,0.00016438,2]
[358905543,1745539839676,-500.0,0.00016438,2]
[358905544,1745539839702,-474.23495288,0.00016438,2]
[358905545,1745539839713,-500.0,0.00016438,2]
[358905546,1745539839722,-500.0,0.00016438,2]
[358905547,1745539839732,-500.0,0.00016438,2]
[358905548,1745539839742,-500.0,0.00016438,2]
[358905549,1745539839751,-500.0,0.00016438,2]
[358905550,1745539839760,-500.0,0.00016438,2]
[358905551,1745539839769,-500.0,0.00016438,2]
[358905553,1745539839779,-500.0,0.00016438,2]
[358905554,1745539839790,-500.0,0.00016438,2]
[358905555,1745539839799,-500.0,0.00016438,2]
[358905556,1745539839810,-500.0,0.00016438,2]
[358905557,1745539839819,-500.0,0.00016438,2]
[358905559,1745539839829,-546.50481193,0.00016438,2]
[358905561,1745539839838,-500.0,0.00016438,2]
[358905563,1745539839848,-500.0,0.00016438,2]
[358905565,1745539839857,-500.0,0.00016438,2]
[358905567,1745539839867,-636.11,0.00016438,2]
[358905568,1745539839877,-510.66063696,0.00016438,2]
[358905570,1745539839886,-500.0,0.00016438,2]
[358905571,1745539839896,-614.5441389,0.00016438,2]
[358905573,1745539839906,-500.0,0.00016438,2]
[358905574,1745539839915,-500.0,0.00016438,2]
[358905575,1745539839925,-500.0,0.00016438,2]
[358905576,1745539839934,-1728.34,0.00016438,2]
[358905577,1745539839943,-500.0,0.00016438,2]
[358905578,1745539839953,-500.0,0.00016438,2]
[358905579,1745539839963,-500.0,0.00016438,2]
[358905581,1745539839972,-500.0,0.00016438,2]
[358905582,1745539839982,-854.78,0.00016438,2]
[358905583,1745539839992,-721.53,0.00016438,2]
[358905584,1745539840001,-500.0,0.00016438,2]
[358905585,1745539840010,-500.0,0.00016438,2]
[358905586,1745539840019,-500.0,0.00016438,2]
[358905587,1745539840030,-649.35948457,0.00016438,2]
[358905588,1745539840039,-500.0,0.00016438,2]
[358905589,1745539840049,-496.26960928,0.00016438,2]
[358905590,1745539840059,-500.0,0.00016438,2]
[358905591,1745539840068,-500.0,0.00016438,2]
[358905592,1745539840077,-757.63,0.00016438,2]
[358905593,1745539840087,-500.0,0.00016438,2]
[358905594,1745539840097,-193.38289694,0.00016438,2]
[358905595,1745539840106,-500.0,0.00016438,2]
[358905596,1745539840116,-558.03,0.00016438,2]
[358905597,1745539840125,-500.0,0.00016438,2]
[358905598,1745539840135,-500.0,0.00016438,2]
[358905599,1745539840144,-500.0,0.00016438,2]
[358905600,1745539840154,-500.0,0.00016438,2]
[358905601,1745539840164,-500.0,0.00016438,2]
[358905602,1745539840174,-500.0,0.00016438,2]
[358905603,1745539840183,-500.0,0.00016438,2]
[358905604,1745539840194,-500.0,0.00016438,2]
[358905605,1745539840203,-766.04,0.00016438,2]
[358905606,1745539840214,-500.0,0.00016438,2]
[358905607,1745539840223,-500.0,0.00016438,2]
[358905608,1745539840233,-500.0,0.00016438,2]
[358905609,1745539840242,-500.0,0.00016438,2]
[358905610,1745539840251,-500.0,0.00016438,2]
[358905611,1745539840262,-512.18514062,0.00016438,2]
[358905612,1745539840271,-502.15811695,0.00016438,2]
[358905613,1745539840281,-500.0,0.00016438,2]
[358905615,1745539840290,-500.0,0.00016438,2]
[358905617,1745539840300,-500.0,0.00016438,2]
[358905619,1745539840310,-500.0,0.00016438,2]
[358905622,1745539840321,-509.491473,0.00016438,2]
[358905624,1745539840331,-500.0,0.00016438,2]
[358905625,1745539840341,-246.76921489,0.00016438,2]
[358905627,1745539840351,-504.26822801,0.00016438,2]
[358905629,1745539840360,-500.0,0.00016438,2]
[358905631,1745539840370,-500.0,0.00016438,2]
[358905633,1745539840380,-505.67493771,0.00016438,2]
[358905635,1745539840389,-500.0,0.00016438,2]
[358905637,1745539840399,-500.0,0.00016438,2]
[358905639,1745539840408,-500.0,0.00016438,2]
[358905641,1745539840417,-172.09974954,0.00016438,2]
[358905642,1745539840427,-500.0,0.00016438,2]
[358905644,1745539840436,-500.0,0.00016438,2]
[358905646,1745539840446,-500.0,0.00016438,2]
[358905648,1745539840455,-500.0,0.00016438,2]
[358905649,1745539840464,-500.0,0.00016438,2]
[358905651,1745539840473,-500.0,0.00016438,2]
[358905653,1745539840483,-500.0,0.00016438,2]
[358905655,1745539840492,-500.0,0.00016438,2]
[358905657,1745539840501,-500.0,0.00016438,2]
[358905659,1745539840511,-507.507474,0.00016438,2]
[358905661,1745539840521,-500.0,0.00016438,2]
[358905663,1745539840531,-500.0,0.00016438,2]
[358905665,1745539840540,-545.7490967,0.00016438,2]
[358905667,1745539840554,-502.75377171,0.00016438,2]
[358905669,1745539840564,-615.37,0.00016438,2]
[358905671,1745539840574,-583.00405154,0.00016438,2]
[358905673,1745539840584,-500.0,0.00016438,2]
[358905675,1745539840594,-500.0,0.00016438,2]
[358905677,1745539840604,-845.47,0.00016438,2]
[358905679,1745539840613,-500.0,0.00016438,2]
[358905681,1745539840626,-500.0,0.00016438,2]
[358905683,1745539840636,-500.0,0.00016438,2]
[358905685,1745539840651,-500.0,0.00016438,2]
[358905687,1745539840665,-500.0,0.00016438,2]
[358905689,1745539840675,-500.0,0.00016438,2]
[358905691,1745539840684,-500.0,0.00016438,2]
[358905692,1745539840694,-500.0,0.00016438,2]
[358905696,1745539840703,-500.0,0.00016438,2]
[358905698,1745539840713,-500.0,0.00016438,2]
[358905701,1745539840723,-500.0,0.00016438,2]
[358905703,1745539840732,-500.0,0.00016438,2]
[358905706,1745539840742,-500.0,0.00016438,2]
[358905709,1745539840751,-500.0,0.00016438,2]
[358905711,1745539840761,-500.0,0.00016438,2]
[358905713,1745539840771,-500.0,0.00016438,2]
[358905715,1745539840783,-500.0,0.00016438,2]
[358905717,1745539840792,-500.0,0.00016438,2]
[358905719,1745539840801,-500.0,0.00016438,2]
[358905721,1745539840812,-515.89,0.00016438,2]
[358905723,1745539840822,-500.0,0.00016438,2]
[358905725,1745539840831,-500.0,0.00016438,2]
[358905727,1745539840840,-553.96,0.00016438,2]
[358905729,1745539840850,-500.0,0.00016438,2]
[358905731,1745539840859,-611.67595888,0.00016438,2]
[358905732,1745539840868,-502.64389879,0.00016438,2]
[358905734,1745539840878,-500.0,0.00016438,2]
[358905736,1745539840887,-500.0,0.00016438,2]
[358905738,1745539840896,-500.0,0.00016438,2]
[358905740,1745539840906,-500.0,0.00016438,2]
[358905742,1745539840915,-500.0,0.00016438,2]
[358905744,1745539840925,-500.0,0.00016438,2]
[358905746,1745539840935,-500.0,0.00016438,2]
[358905748,1745539840944,-500.0,0.00016438,2]
[358905750,1745539840953,-500.0,0.00016438,2]
[358905752,1745539840963,-500.0,0.00016438,2]
[358905754,1745539840971,-502.93607963,0.00016438,2]
[358905756,1745539840981,-1327.57,0.00016438,2]
[358905758,1745539840990,-500.0,0.00016438,2]
[358905760,1745539840999,-905.92,0.00016438,2]
[358905762,1745539841009,-500.0,0.00016438,2]
[358905764,1745539841018,-500.0,0.00016438,2]
[358905766,1745539841027,-500.0,0.00016438,2]
[358905768,1745539841036,-500.0,0.00016438,2]
[358905770,1745539841045,-500.0,0.00016438,2]